bitfinex/quotes_SOLUSD_20250904
["timestamp","ask_amount","ask_price","bid_price","bid_amount"]
[1756965854020,0.06,206.82,206.81,0.03]
[1756965854819,0.06,206.82,206.81,5.75121636]
[1756965856191,0.06,206.82,206.81,5.09121636]
[1756965858128,0.06,206.82,206.81,5.75121636]
[1756965860319,0.06,206.82,206.81,5.09121636]
[1756965860525,0.06,206.82,206.81,18.68681037]
[1756965862229,0.06,206.82,206.81,19.34681037]
[1756965862719,0.06,206.82,206.81,24.46648963]
[1756965863623,0.06,206.82,206.81,61.88648963]
[1756965870414,0.06,206.82,206.81,140.48648963]
[1756965872925,0.06,206.82,206.81,99.94236618]
[1756965873104,0.06,206.82,206.81,142.40358254]
[1756965873309,0.06,206.82,206.81,140.46648963]
[1756965873509,0.06,206.82,206.81,138.63942141]
[1756965873733,0.06,206.85,206.84,39.59559401]
[1756965873921,0.06,206.85,206.84,155.87991715]
[1756965874126,0.06,206.85,206.84,161.7109706]
[1756965874429,0.06,206.85,206.84,129.1456254]
[1756965874639,0.06,206.85,206.84,161.0509706]
[1756965874806,0.06,206.85,206.84,159.11406529]
[1756965875012,0.06,206.85,206.84,163.94872009]
[1756965875207,0.06,206.85,206.84,164.60872009]
[1756965875428,0.06,206.85,206.84,163.94872009]
[1756965876434,0.06,206.85,206.84,126.54872009]
[1756965876615,0.06,206.85,206.82,1.9369991]
[1756965876815,0.77,206.85,206.84,3.23414814]
[1756965877112,0.71,206.84,206.83,50.99559401]
[1756965877315,0.71,206.84,206.83,54.51406529]
[1756965877519,0.06,206.85,206.84,0.28432314]
[1756965877719,0.77,206.85,206.84,3.51847128]
[1756965878312,0.77,206.85,206.84,0.28432314]
[1756965878719,0.06,206.85,206.84,0.28432314]
[1756965878922,0.77,206.85,206.84,0.28432314]
[1756965879120,0.06,206.85,206.84,0.28432314]
[1756965879418,0.77,206.85,206.84,0.28432314]
[1756965879610,0.77,206.85,206.84,13.87991715]
[1756965879814,0.77,206.85,206.84,51.27991715]
[1756965881531,0.06,206.85,206.84,55.17406529]
[1756965882038,0.06,206.85,206.84,55.21406529]
[1756965882543,0.06,206.85,206.84,60.04872009]
[1756965884345,0.06,206.85,206.84,86.04872009]
[1756965885449,0.06,206.85,206.84,138.64872009]
[1756965885634,1e-08,206.85,206.84,137.35119593]
[1756965885824,1e-08,206.85,206.84,140.58534407]
[1756965886345,0.06,206.87,206.86,39.87991715]
[1756965886544,0.06,206.87,206.86,80.49406529]
[1756965886747,0.06,206.87,206.86,81.19406529]
[1756965887224,0.06,206.87,206.86,87.96468913]
[1756965888767,0.06,206.88,206.87,13.87991715]
[1756965888929,0.06,206.88,206.87,18.39413973]
[1756965889751,0.06,206.88,206.87,96.99413973]
[1756965890052,0.06,206.88,206.87,101.24801898]
[1756965893655,0.06,206.9,206.89,39.87991715]
[1756965893833,0.06,206.92,206.9,13.87991715]
[1756965894038,0.06,206.92,206.91,68.01062015]
[1756965894239,0.06,206.92,206.91,68.71062015]
[1756965894440,0.06,206.92,206.91,70.64658802]
[1756965894958,0.06,206.92,206.91,75.4796072]
[1756965897658,0.06,206.92,206.91,75.4596072]
[1756965898157,0.06,206.92,206.91,38.0996072]
[1756965898363,0.06,206.92,206.91,75.4596072]
[1756965898749,0.06,206.92,206.91,38.0996072]
[1756965898963,0.06,206.92,206.91,154.0596072]
[1756965899148,0.06,206.92,206.91,153.4796449]
[1756965900361,0.06,206.92,206.91,100.54708447]
[1756965900556,0.71,206.92,206.91,137.90708447]
[1756965900753,0.06,206.92,206.91,137.90708447]
[1756965901743,0.06,206.92,206.91,100.54708447]
[1756965901949,0.06,206.92,206.91,137.90708447]
[1756965902270,0.71,206.92,206.91,133.07406529]
[1756965902756,0.71,206.92,206.91,159.07406529]
[1756965903151,0.06,206.92,206.91,145.47847128]
[1756965903351,0.06,206.92,206.91,163.90708447]
[1756965904163,0.06,206.92,206.91,121.71406529]
[1756965904560,0.06,206.92,206.91,159.07406529]
[1756965905061,0.06,206.92,206.91,80.47406529]
[1756965905249,0.06,206.92,206.91,17.11406529]
[1756965905455,0.06,206.92,206.91,50.95559401]
[1756965905655,0.06,206.92,206.91,51.23991715]
[1756965905856,0.06,206.92,206.91,13.59559401]
[1756965906063,0.06,206.92,206.91,50.95559401]
[1756965906380,0.06,206.92,206.88,13.59559401]
[1756965906668,0.06,206.92,206.89,37.36]
[1756965906971,0.06,206.92,206.9,13.59559401]
[1756965907360,3.29414814,206.92,206.87,13.59559401]
[1756965907553,0.06,206.92,206.88,37.36]
[1756965907759,3.29414814,206.92,206.88,37.36]
[1756965907968,4.83301918,206.91,206.88,37.36]
[1756965908576,4.83301918,206.91,206.88,40.59414814]
[1756965908761,4.89283134,206.92,206.88,40.59414814]
[1756965909774,4.89283134,206.92,206.88,37.36]
[1756965913348,8.12697948,206.92,206.87,13.59559401]
[1756965913552,3.23414814,206.89,206.87,13.59559401]
[1756965913982,3.23414814,206.9,206.87,13.59559401]
[1756965914567,4.89283134,206.92,206.87,13.59559401]
[1756965914773,3.23414814,206.91,206.87,13.59559401]
[1756965915073,4.83348639,206.89,206.87,13.59559401]
[1756965915256,0.66,206.88,206.87,13.59559401]
[1756965916851,4.83348639,206.89,206.85,3.54847128]
[1756965917051,4.83395369,206.87,206.85,37.39]
[1756965917258,0.66,206.86,206.85,50.98559401]
[1756965917562,0.09283718,206.86,206.85,50.98559401]
[1756965918078,0.75283718,206.86,206.85,50.98559401]
[1756965918273,0.09283718,206.86,206.85,50.98559401]
[1756965919159,0.09283718,206.86,206.85,13.62559401]
[1756965919587,0.09283718,206.86,206.85,0.03]
[1756965919588,5.58702455,206.86,206.85,0.03]
[1756965920381,4.92702455,206.86,206.85,0.03]
[1756965920672,0.09283718,206.86,206.85,0.03]
[1756965920883,0.09283718,206.86,206.85,14.28559401]
[1756965921072,0.09283718,206.86,206.85,17.51974215]
[1756965922282,0.09283718,206.86,206.85,17.80406529]
[1756965922587,0.09283718,206.86,206.85,22.63848636]
[1756965923786,0.09283718,206.86,206.85,17.80406529]
[1756965925766,0.09283718,206.86,206.85,22.63848636]
[1756965925962,0.09283718,206.86,206.85,17.80406529]
[1756965931595,0.09283718,206.86,206.85,22.63848636]
[1756965932298,0.09283718,206.86,206.85,127.23848636]
[1756965932470,0.09283718,206.86,206.85,101.23848636]
[1756965933478,0.09283718,206.86,206.85,103.05413267]
[1756965933670,0.09283718,206.86,206.85,104.9906629]
[1756965934703,0.09283718,206.86,206.85,142.3306629]
[1756965937685,0.18440234,206.86,206.85,142.3306629]
[1756965937881,0.18440234,206.86,206.85,104.9906629]
[1756965938193,0.18440234,206.86,206.85,140.39413267]
[1756965938494,0.18440234,206.86,206.85,140.10980953]
[1756965938694,0.18440234,206.86,206.85,140.39413267]
[1756965938890,0.18440234,206.86,206.85,97.5597116]
[1756965939103,0.18440234,206.86,206.85,160.8997116]
[1756965939104,0.09156516,206.86,206.85,160.8997116]
[1756965939281,0.09156516,206.86,206.85,134.8997116]
[1756965939882,0.09156516,206.86,206.85,135.5597116]
[1756965940201,0.09156516,206.86,206.85,140.39413267]
[1756965941876,0.09309349,206.87,206.86,0.28432314]
[1756965942078,0.09309349,206.87,206.86,20.17981408]
[1756965943401,0.09309349,206.87,206.86,26.95034418]
[1756965946396,0.09309349,206.87,206.86,105.55034418]
[1756965946591,0.09309349,206.87,206.86,104.9702417]
[1756965946976,0.09309349,206.87,206.86,102.36389897]
[1756965947303,0.09309349,206.87,206.86,140.37389897]
[1756965947791,0.09309349,206.87,206.86,139.70389897]
[1756965948392,0.09309349,206.87,206.86,102.36389897]
[1756965948591,0.09309349,206.87,206.86,139.70389897]
[1756965948788,0.09309349,206.87,206.86,102.36389897]
[1756965948993,0.79309349,206.87,206.86,123.5297116]
[1756965949186,0.79309349,206.87,206.86,160.56538846]
[1756965949782,0.79309349,206.87,206.86,160.8497116]
[1756965949983,0.79309349,206.87,206.86,82.2497116]
[1756965950185,0.09309349,206.87,206.86,82.2497116]
[1756965950680,0.09309349,206.87,206.86,82.03410452]
[1756965950883,0.09309349,206.87,206.86,87.08389897]
[1756965951500,0.09309349,206.87,206.86,87.75389897]
[1756965951706,0.09309349,206.87,206.86,61.75389897]
[1756965952604,0.09309349,206.87,206.86,62.33400145]
[1756965954391,0.09309349,206.87,206.86,61.75389897]
[1756965954585,0.09309349,206.87,206.86,61.08389897]
[1756965955205,0.09309349,206.87,206.86,139.68389897]
[1756965955407,0.09309349,206.87,206.86,140.35389897]
[1756965956089,0.09309349,206.87,206.86,102.36389897]
[1756965956294,0.09309349,206.87,206.86,139.68389897]
[1756965956612,0.79309349,206.87,206.86,134.8497116]
[1756965956815,0.09309349,206.87,206.86,134.8497116]
[1756965957012,0.09309349,206.87,206.86,139.68389897]
[1756965957498,0.18949028,206.87,206.86,139.68389897]
[1756965958195,0.18949028,206.87,206.86,141.62061672]
[1756965958394,0.18949028,206.87,206.86,141.65061672]
[1756965958705,0.24949028,206.87,206.86,142.32061672]
[1756965959102,0.15639679,206.87,206.86,142.32061672]
[1756965960215,0.15639679,206.87,206.86,141.65061672]
[1756965961606,0.15639679,206.87,206.86,136.60082227]
[1756965961810,0.15639679,206.87,206.86,141.65061672]
[1756965963993,0.15639679,206.87,206.86,142.32061672]
[1756965965707,0.15639679,206.87,206.86,141.65061672]
[1756965966288,0.15639679,206.87,206.86,167.65061672]
[1756965967215,0.15639679,206.87,206.86,168.32061672]
[1756965967709,0.15639679,206.87,206.86,142.32061672]
[1756965969690,0.15639679,206.87,206.86,99.95082227]
[1756965969891,0.15639679,206.87,206.86,142.32061672]
[1756965972305,1e-08,206.87,206.86,142.32061672]
[1756965972504,0.08703754,206.88,206.87,13.87991715]
[1756965972699,0.08703754,206.88,206.87,20.18978604]
[1756965972901,0.08703754,206.88,206.87,98.78978604]
[1756965973100,0.08703754,206.88,206.87,98.2097116]
[1756965974110,0.08703754,206.88,206.87,103.04366529]
[1756965974612,0.08703754,206.88,206.87,139.68366529]
[1756965975916,0.08703754,206.88,206.87,102.07934215]
[1756965976119,0.08703754,206.88,206.87,139.37934215]
[1756965976520,0.08703754,206.88,206.87,140.34366529]
[1756965977023,0.14703754,206.88,206.87,140.34366529]
[1756965977518,0.2531301,206.88,206.87,140.34366529]
[1756965979107,0.16609256,206.88,206.87,140.34366529]
[1756965981705,0.16609256,206.88,206.87,142.27991429]
[1756965985627,0.10493174,206.89,206.88,0.28432314]
[1756965985824,0.10493174,206.89,206.88,19.6097116]
[1756965986421,0.10493174,206.89,206.88,21.5459606]
[1756965987003,0.10493174,206.89,206.88,20.8659606]
[1756965987215,0.10493174,206.89,206.88,21.446007]
[1756965987615,0.10493174,206.89,206.88,26.27972703]
[1756965987827,0.10493174,206.89,206.88,104.87972703]
[1756965988009,0.10493174,206.89,206.88,104.29968063]
[1756965990612,0.10493174,206.89,206.88,104.97968063]
[1756965993513,0.10493174,206.89,206.88,103.1609287]
[1756965994832,0.16493174,206.89,206.88,103.1609287]
[1756965997007,0.15027293,206.9,206.89,13.87991715]
[1756965997215,0.15027293,206.9,206.89,68.59514811]
[1756965997616,0.24449115,206.9,206.89,75.36478978]
[1756965998342,0.24449115,206.9,206.89,61.7606197]
[1756965998522,0.91449115,206.9,206.89,61.7606197]
[1756965998723,0.24449115,206.9,206.89,61.7606197]
[1756965999237,0.15421822,206.9,206.89,61.7606197]
[1756965999737,0.15421822,206.9,206.89,140.3606197]
[1756966000037,0.15421822,206.9,206.89,139.78060134]
[1756966000432,0.15421822,206.9,206.89,102.48060134]
[1756966000730,0.15421822,206.9,206.89,139.76060134]
[1756966002038,0.15421822,206.9,206.89,99.24955882]
[1756966002247,0.87421822,206.9,206.89,139.76060134]
[1756966002430,0.15421822,206.9,206.89,139.76060134]
[1756966002621,0.87421822,206.9,206.89,139.76060134]
[1756966002837,0.15421822,206.9,206.89,139.76060134]
[1756966008248,0.15421822,206.9,206.89,136.52955882]
[1756966008434,0.15421822,206.9,206.89,139.76060134]
[1756966017432,0.15421822,206.9,206.89,136.52955882]
[1756966017639,0.25603099,206.9,206.89,139.76060134]
[1756966019255,0.16181277,206.9,206.89,139.76060134]
[1756966019663,0.16181277,206.9,206.89,140.45060134]
[1756966020242,0.16181277,206.9,206.89,136.52955882]
[1756966020456,0.16181277,206.9,206.89,139.76060134]
[1756966020658,0.16181277,206.9,206.89,140.45060134]
[1756966023851,0.05989775,206.9,206.89,140.45060134]
[1756966025359,0.05989775,206.9,206.89,153.37477142]
[1756966025674,1e-08,206.93,206.92,0.28432314]
[1756966025968,0.81474518,206.98,206.94,39.87991715]
[1756966026155,0.09474518,206.98,206.95,13.87991715]
[1756966026482,0.09474518,206.98,206.96,54.39095967]
[1756966026667,0.09474518,206.98,206.96,55.08095967]
[1756966027338,0.09474518,206.98,206.96,57.01655281]
[1756966027538,0.72,207.03,207.02,39.87991715]
[1756966027876,12.06805536,207.16,207.03,0.28432314]
[1756966027877,0.72,207.06,207.03,0.28432314]
[1756966028036,12.06805536,207.16,207.05,21.94052906]
[1756966028037,4.82798164,207.13,207.05,21.94052906]
[1756966028235,4.82798164,207.13,207.07,16.82663653]
[1756966028434,4.82741974,207.11,207.09,13.59559401]
[1756966028665,0.72,207.1,207.09,13.59559401]
[1756966028876,0.72,207.1,207.09,50.87559401]
[1756966031846,0.78,207.1,207.09,50.87559401]
[1756966032445,4.01104252,207.1,207.07,13.59559401]
[1756966032666,0.67,207.09,207.08,37.26]
[1756966032973,0.67,207.09,207.08,13.59559401]
[1756966035541,3.90104252,207.09,207.08,13.59559401]
[1756966035958,8.7298609,207.09,207.03,11.41073934]
[1756966036152,3.23104252,207.06,207.05,13.59559401]
[1756966036357,3.90104252,207.06,207.05,50.85559401]
[1756966036650,0.67,207.07,207.05,50.85559401]
[1756966036865,3.23104252,207.09,207.05,50.85559401]
[1756966037069,0.67,207.06,207.05,50.85559401]
[1756966037365,4.82881838,207.08,207.05,50.85559401]
[1756966037577,0.08853576,207.06,207.05,50.85559401]
[1756966038073,0.08853576,207.06,207.05,51.13991715]
[1756966038273,0.08853576,207.06,207.05,54.37095967]
[1756966038952,0.08853576,207.06,207.05,55.03095967]
[1756966039148,0.08853576,207.06,207.05,59.86071093]
[1756966039354,0.08853576,207.06,207.05,59.88071093]
[1756966046160,0.08853576,207.06,207.05,59.22071093]
[1756966046359,0.08853576,207.06,207.05,59.88071093]
[1756966046792,0.08853576,207.06,207.05,15.81485487]
[1756966047085,0.08853576,207.06,207.05,82.30589739]
[1756966047666,0.08853576,207.06,207.05,41.81485487]
[1756966047864,0.75853576,207.06,207.05,76.85559401]
[1756966048583,0.75853576,207.06,207.05,77.13991715]
[1756966049281,0.08853576,207.06,207.05,77.13991715]
[1756966049779,0.14853576,207.06,207.05,77.13991715]
[1756966049968,0.14853576,207.06,207.05,80.37095967]
[1756966050168,0.14853576,207.06,207.05,85.20071093]
[1756966050368,0.14853576,207.06,207.05,85.86071093]
[1756966050974,0.14853576,207.06,207.05,59.86071093]
[1756966051175,0.14853576,207.06,207.05,61.79574225]
[1756966053687,0.14853576,207.06,207.05,63.60703494]
[1756966057265,0.81853576,207.06,207.05,57.90469973]
[1756966057598,0.81853576,207.06,207.03,13.59559401]
[1756966057599,0.92317549,207.06,207.03,13.59559401]
[1756966057765,0.67,207.05,207.04,37.26]
[1756966058493,5.54868619,207.06,207.05,13.59559401]
[1756966058693,0.25317549,207.06,207.05,13.59559401]
[1756966059192,0.16463973,207.06,207.05,13.59559401]
[1756966059568,0.83463973,207.06,207.05,13.59559401]
[1756966060699,0.16463973,207.06,207.05,13.87991715]
[1756966060881,0.83463973,207.06,207.05,50.85559401]
[1756966061084,10.70649295,207.06,207.01,5.90265942]
[1756966061298,5.71233521,207.05,207.02,50.85559401]
[1756966061589,0.67,207.04,207.02,50.85559401]
[1756966061980,16.58346789,207.06,207.02,50.85559401]
[1756966062196,0.66,207.05,207.02,50.85559401]
[1756966062697,15.91346789,207.06,207.03,5.97665835]
[1756966062698,10.87113268,207.06,207.03,5.97665835]
[1756966062897,0.16463973,207.06,207.05,13.87991715]
[1756966063474,0.16463973,207.06,207.05,19.57225236]
[1756966064374,0.16463973,207.06,207.05,14.52991715]
[1756966064604,0.16463973,207.06,207.05,18.92225236]
[1756966064811,0.16463973,207.06,207.05,82.18225236]
[1756966065017,0.16463973,207.06,207.05,87.66200362]
[1756966065318,0.16463973,207.06,207.05,62.24157377]
[1756966065813,0.16463973,207.06,207.05,57.19923856]
[1756966066112,0.16463973,207.06,207.05,61.66200362]
[1756966066688,0.16463973,207.06,207.05,62.24157377]
[1756966067022,0.16463973,207.06,207.05,62.86157377]
[1756966068204,0.16463973,207.06,207.05,57.81923856]
[1756966068404,0.16463973,207.06,207.05,62.86157377]
[1756966071009,0.16463973,207.06,207.05,141.46157377]
[1756966071191,0.16463973,207.06,207.05,140.88200362]
[1756966071396,0.16463973,207.06,207.05,140.94200362]
[1756966071587,0.16463973,207.06,207.05,142.87675416]
[1756966072388,0.16463973,207.06,207.05,98.96009581]
[1756966072608,0.16463973,207.06,207.05,137.11267976]
[1756966072808,0.16463973,207.06,207.05,137.3970029]
[1756966073613,0.16463973,207.06,207.05,132.35466769]
[1756966073810,0.16463973,207.06,207.05,163.3970029]
[1756966073988,0.16463973,207.06,207.05,158.35466769]
[1756966074187,0.16463973,207.06,207.05,161.46225236]
[1756966075109,0.16463973,207.06,207.05,166.29200362]
[1756966075791,0.16463973,207.06,207.05,166.94200362]
[1756966076504,0.16463973,207.06,207.05,140.94200362]
[1756966076705,0.16463973,207.06,207.05,141.02200362]
[1756966077616,0.25515217,207.06,207.05,141.02200362]
[1756966077798,0.25515217,207.06,207.05,62.42200362]
[1756966078121,0.25515217,207.06,207.05,63.00157377]
[1756966079009,0.18974875,207.07,207.06,0.28432314]
[1756966079200,0.09681765,207.07,207.06,57.59225236]
[1756966080316,0.09681765,207.07,207.06,62.42177037]
[1756966080522,1e-08,207.07,207.06,63.00131253]
[1756966080718,0.14932773,207.09,207.08,13.87991715]
[1756966081015,0.14932773,207.09,207.08,19.50173854]
[1756966081208,0.14932773,207.09,207.08,58.15173854]
[1756966081722,0.14932773,207.09,207.08,60.08611482]
[1756966082425,0.80932773,207.09,207.08,56.63792922]
[1756966082613,0.80932773,207.09,207.08,51.87991715]
[1756966082812,0.80932773,207.09,207.08,13.87991715]
[1756966083016,0.80932773,207.09,207.08,51.57559401]
[1756966083525,0.80932773,207.09,207.08,13.87991715]
[1756966083710,0.80932773,207.09,207.08,51.85991715]
[1756966083911,0.80932773,207.09,207.08,51.57559401]
[1756966084315,0.80932773,207.09,207.08,51.85991715]
[1756966084715,0.80932773,207.09,207.08,13.87991715]
[1756966084923,0.80932773,207.09,207.08,51.85991715]
[1756966085426,0.80932773,207.09,207.08,13.59559401]
[1756966085625,0.80932773,207.09,207.08,51.55559401]
[1756966087124,0.80932773,207.09,207.08,51.58559401]
[1756966088433,0.14932773,207.09,207.08,51.86991715]
[1756966088638,0.14932773,207.09,207.08,56.69896872]
[1756966090024,0.14932773,207.09,207.08,51.86991715]
[1756966090612,0.14932773,207.09,207.08,56.69896872]
[1756966091230,0.14932773,207.09,207.08,51.86991715]
[1756966091929,0.80932773,207.09,207.08,51.84991715]
[1756966092634,0.80932773,207.09,207.08,51.56559401]
[1756966093135,0.80932773,207.09,207.08,51.53559401]
[1756966093504,0.14932773,207.09,207.08,51.53559401]
[1756966093747,0.85932773,207.09,207.08,51.81991715]
[1756966094949,0.14932773,207.09,207.08,51.81991715]
[1756966095445,0.85932773,207.09,207.08,51.81991715]
[1756966096109,0.85932773,207.09,207.08,51.85991715]
[1756966097018,0.85932773,207.09,207.08,13.59559401]
[1756966097224,0.85932773,207.09,207.08,51.57559401]
[1756966097634,0.94868405,207.09,207.08,51.57559401]
[1756966098426,0.23868405,207.09,207.08,51.85991715]
[1756966098632,0.94868405,207.09,207.08,51.57559401]
[1756966099231,0.85935632,207.09,207.08,51.57559401]
[1756966099531,5.6881747,207.09,207.08,13.59559401]
[1756966099738,10.73050991,207.09,207.08,13.59559401]
[1756966100031,10.73050991,207.09,207.08,0.03]
[1756966101008,0.85935632,207.09,207.08,0.03]
[1756966101217,0.14935632,207.09,207.08,51.56559401]
[1756966101913,0.14935632,207.09,207.08,51.84991715]
[1756966102114,0.14935632,207.09,207.08,57.58225236]
[1756966102432,0.14935632,207.09,207.08,52.53991715]
[1756966102635,0.14935632,207.09,207.08,51.84991715]
[1756966104720,0.14935632,207.09,207.08,57.58225236]
[1756966105435,0.14935632,207.09,207.08,62.41130393]
[1756966108648,0.14935632,207.09,207.08,57.58225236]
[1756966108830,0.14935632,207.09,207.08,56.89225236]
[1756966109032,0.14935632,207.09,207.08,51.84991715]
[1756966109938,0.14935632,207.09,207.08,57.58225236]
[1756966110148,0.14935632,207.09,207.08,56.89225236]
[1756966110323,0.14935632,207.09,207.08,57.58225236]
[1756966110525,0.14935632,207.09,207.08,51.84991715]
[1756966110728,0.14935632,207.09,207.08,56.89225236]
[1756966111544,0.14935632,207.09,207.08,51.84991715]
[1756966111743,0.14935632,207.09,207.08,51.82991715]
[1756966111744,0.85935632,207.09,207.08,51.82991715]
[1756966112334,0.14935632,207.09,207.08,51.82991715]
[1756966112646,0.85935632,207.09,207.08,13.90991715]
[1756966112847,10.73050991,207.09,207.08,0.03]
[1756966115652,8.91630916,207.09,207.08,0.03]
[1756966116448,4.08749078,207.09,207.08,0.03]
[1756966116829,0.85935632,207.09,207.08,0.03]
[1756966117029,4.08749078,207.09,207.08,0.03]
[1756966117653,0.95065079,207.09,207.08,0.03]
[1756966117954,4.17878525,207.09,207.08,0.03]
[1756966118650,0.24065079,207.09,207.08,13.62559401]
[1756966119237,0.15129447,207.09,207.08,13.62559401]
[1756966121044,0.15129447,207.09,207.08,14.31559401]
[1756966121953,0.15129447,207.09,207.08,14.59991715]
[1756966122138,0.15129447,207.09,207.08,48.65710318]
[1756966124958,0.15129447,207.09,207.08,22.65710318]
[1756966127175,0.15129447,207.09,207.08,60.47710318]
[1756966127342,0.15129447,207.09,207.08,98.02896872]
[1756966127540,0.15129447,207.09,207.08,139.07710318]
[1756966127936,0.15129447,207.09,207.08,165.07710318]
[1756966128141,0.15129447,207.09,207.08,127.25710318]
[1756966128374,0.15129447,207.09,207.08,118.50991715]
[1756966128546,0.15129447,207.09,207.08,156.95991715]
[1756966129058,0.15129447,207.09,207.08,165.01710318]
[1756966130849,0.15129447,207.09,207.08,164.36710318]
[1756966132364,0.15129447,207.09,207.08,165.01710318]
[1756966133167,0.15129447,207.09,207.08,86.41710318]
[1756966136554,0.15129447,207.09,207.08,136.3684549]
[1756966136743,0.15129447,207.09,207.08,140.95147947]
[1756966136949,0.04862279,207.09,207.08,103.15147947]
[1756966137172,0.04862279,207.09,207.08,137.94334501]
[1756966137661,0.135819,207.09,207.08,141.17147947]
[1756966139091,0.135819,207.09,207.08,99.92334501]
[1756966139244,0.08719621,207.09,207.08,57.14464558]
[1756966139570,0.08719621,207.09,207.08,60.65710318]
[1756966139767,0.08719621,207.09,207.08,57.42896872]
[1756966139966,0.08719621,207.09,207.08,60.65710318]
[1756966140166,0.08719621,207.09,207.08,56.77896872]
[1756966140356,0.08719621,207.09,207.08,51.94991715]
[1756966140543,0.08719621,207.09,207.08,13.90991715]
[1756966140749,0.08719621,207.09,207.08,51.94991715]
[1756966141383,0.78719621,207.09,207.08,13.90991715]
[1756966141550,0.84719621,207.09,207.08,51.92991715]
[1756966142253,0.14719621,207.09,207.08,56.75896872]
[1756966142455,0.14719621,207.09,207.08,60.63710318]
[1756966144172,0.14719621,207.09,207.08,139.81658936]
[1756966144375,0.14719621,207.09,207.08,139.23710318]
[1756966145060,0.14719621,207.09,207.08,141.17147947]
[1756966145749,0.14719621,207.09,207.08,137.94334501]
[1756966146082,0.14719621,207.09,207.08,141.17147947]
[1756966147762,0.14719621,207.09,207.08,137.94334501]
[1756966147958,0.14719621,207.09,207.08,141.17147947]
[1756966151093,0.14719621,207.09,207.08,102.50147947]
[1756966151269,0.84719621,207.09,207.08,128.50147947]
[1756966151472,0.14719621,207.09,207.08,163.23334501]
[1756966151658,0.14719621,207.09,207.08,166.46147947]
[1756966151858,0.14719621,207.09,207.08,140.46147947]
[1756966152264,0.14719621,207.09,207.08,166.46147947]
[1756966153257,0.14719621,207.09,207.08,167.17147947]
[1756966153887,0.14719621,207.09,207.08,166.46147947]
[1756966156180,0.14719621,207.09,207.08,167.17147947]
[1756966156670,0.14719621,207.09,207.08,166.46147947]
[1756966156858,0.14719621,207.09,207.08,167.17147947]
[1756966157269,0.14719621,207.09,207.08,163.94334501]
[1756966157567,0.14719621,207.09,207.08,141.17147947]
[1756966157870,0.24165391,207.09,207.08,141.17147947]
[1756966159085,0.1544577,207.09,207.08,141.17147947]
[1756966162075,0.1544577,207.09,207.08,137.94334501]
[1756966162274,0.1544577,207.09,207.08,141.17147947]
[1756966164085,0.1544577,207.09,207.08,99.27334501]
[1756966164303,0.8744577,207.09,207.08,132.26429344]
[1756966164502,0.1544577,207.09,207.08,135.4924279]
[1756966164791,0.1544577,207.09,207.08,140.32147947]
[1756966165990,0.8744577,207.09,207.08,94.1599703]
[1756966166165,0.8744577,207.09,207.08,130.06559401]
[1756966166366,0.8744577,207.09,207.08,13.62559401]
[1756966166567,0.8744577,207.09,207.08,51.46559401]
[1756966175295,0.1544577,207.09,207.08,52.45991715]
[1756966175602,0.1544577,207.09,207.08,60.51710318]
[1756966175810,0.1544577,207.09,207.08,59.22371926]
[1756966175990,0.1544577,207.09,207.08,62.45185372]
[1756966177598,0.1544577,207.09,207.08,64.26507251]
[1756966177776,0.24351786,207.09,207.08,64.26507251]
[1756966178798,0.24351786,207.09,207.08,20.67371926]
[1756966179099,0.24351786,207.09,207.08,63.49507251]
[1756966179100,0.14906016,207.09,207.08,63.49507251]
[1756966180602,0.86906016,207.09,207.08,15.84466769]
[1756966180781,0.86906016,207.09,207.08,51.38559401]
[1756966184993,5.91041341,207.09,207.08,0.03]
[1756966185513,10.73923179,207.09,207.08,0.03]
[1756966189013,0.86906016,207.09,207.08,0.03]
[1756966189307,5.91041341,207.09,207.08,0.03]
[1756966189992,0.86906016,207.09,207.08,0.03]
[1756966190391,0.14906016,207.09,207.08,0.03]
[1756966190882,0.83906016,207.09,207.08,0.03]
[1756966194412,0.14906016,207.09,207.08,0.03]
[1756966197718,0.24617512,207.09,207.08,0.03]
[1756966198200,0.24617512,207.09,207.08,14.30559401]
[1756966198397,0.24617512,207.09,207.08,13.62559401]
[1756966198919,0.93617512,207.09,207.08,13.62559401]
[1756966199119,0.15711496,207.09,207.08,13.62559401]
[1756966200705,0.84711496,207.09,207.08,13.62559401]
[1756966203120,0.15711496,207.09,207.08,13.62559401]
[1756966203720,10.71728659,207.09,207.08,13.62559401]
[1756966204027,10.71728659,207.09,207.08,0.03]
[1756966206533,5.67593334,207.09,207.08,0.03]
[1756966206713,10.71728659,207.09,207.08,0.03]
[1756966208338,4.98593334,207.09,207.08,0.03]
[1756966208510,10.71728659,207.09,207.08,0.03]
[1756966210633,43.31593334,207.09,207.08,0.03]
[1756966210935,48.35728659,207.09,207.08,0.03]
[1756966211115,43.31593334,207.09,207.08,0.03]
[1756966211306,48.35728659,207.09,207.08,0.03]